{"text_format":"3","workbook":"xlsx","n_sheets":2,"sheets":["Budget matrimonio","Dettagli budget"],"not_rendered":{"charts":1,"images":1,"defined_names":2},"read":"whole","date_system":"1900"}

{"sheet":"Budget matrimonio","index":0,"n_rows":16,"n_cols":16,"rows_kept":16,"merged":[[1,1,1,5]]}
[]
[null,"MARTINA e LUCA\nANNUNCIANO IL LORO MATRIMONIO"]
[]
[]
[null,"CATEGORIA","COSTO STIMATO","COSTO EFFETTIVO","VARIANZA","% DEL BUDGET",{"$nulls":3},"Non ordinate","Costi stimati","Costi effettivi","Spesa stimata - Posizione","Posizione","#","Ordinate"]
[null,{"$f":"P6","v":"Ricevimento nuziale"},{"$f":"VLOOKUP(TBL_Riepilogo[[#This Row],[CATEGORIA]],TBL_ClassificazioneDati,2,FALSE)","v":{"v":14500,"d":"€ 14,500"}},{"$f":"IF(VLOOKUP(TBL_Riepilogo[[#This Row],[CATEGORIA]],TBL_ClassificazioneDati,3,FALSE)=0,\"\",VLOOKUP(TBL_Riepilogo[[#This Row],[CATEGORIA]],TBL_ClassificazioneDati,3,FALSE))","v":{"v":12800,"d":"€ 12,800"}},{"$f":"IF(OR(TBL_Riepilogo[[#This Row],[COSTO STIMATO]]=\"\",TBL_Riepilogo[[#This Row],[COSTO EFFETTIVO]]=\"\"),\"\",TBL_Riepilogo[[#This Row],[COSTO STIMATO]]-TBL_Riepilogo[[#This Row],[COSTO EFFETTIVO]])","v":{"v":1700,"d":"€ 1,700"}},{"$f":"TBL_Riepilogo[[#This Row],[COSTO STIMATO]]/SUM(TBL_Riepilogo[COSTO STIMATO])","v":{"v":0.48739495798319327,"d":"48.7%"}},{"$nulls":3},"Ricevimento nuziale",{"$f":"TBL_Ricevimento[[#Totals],[STIMATI]]","v":14500},{"$f":"TBL_Ricevimento[[#Totals],[EFFETTIVI]]","v":12800},{"$f":"K6-O6/100","v":14499.99},{"$f":"_xlfn.RANK.AVG(M6,$M$6:$M$15)","v":1},1,{"$f":"INDEX(TBL_ClassificazioneDati,MATCH(O6,$N$6:$N$15,0),1)","v":"Ricevimento nuziale"}]
[null,{"$f":"P7","v":"Abbigliamento"},{"$f":"VLOOKUP(TBL_Riepilogo[[#This Row],[CATEGORIA]],TBL_ClassificazioneDati,2,FALSE)","v":{"v":4000,"d":"€ 4,000"}},{"$f":"IF(VLOOKUP(TBL_Riepilogo[[#This Row],[CATEGORIA]],TBL_ClassificazioneDati,3,FALSE)=0,\"\",VLOOKUP(TBL_Riepilogo[[#This Row],[CATEGORIA]],TBL_ClassificazioneDati,3,FALSE))","v":{"v":2900,"d":"€ 2,900"}},{"$f":"IF(OR(TBL_Riepilogo[[#This Row],[COSTO STIMATO]]=\"\",TBL_Riepilogo[[#This Row],[COSTO EFFETTIVO]]=\"\"),\"\",TBL_Riepilogo[[#This Row],[COSTO STIMATO]]-TBL_Riepilogo[[#This Row],[COSTO EFFETTIVO]])","v":{"v":1100,"d":"€ 1,100"}},{"$f":"TBL_Riepilogo[[#This Row],[COSTO STIMATO]]/SUM(TBL_Riepilogo[COSTO STIMATO])","v":{"v":0.13445378151260504,"d":"13.4%"}},{"$nulls":3},"Abbigliamento",{"$f":"TBL_Abbigliamento[[#Totals],[STIMATI]]","v":4000},{"$f":"TBL_Abbigliamento[[#Totals],[EFFETTIVI]]","v":2900},{"$f":"K7-O7/100","v":3999.98},2,2,"Abbigliamento"]
[null,"Fiori e decorazioni",{"$f":"VLOOKUP(TBL_Riepilogo[[#This Row],[CATEGORIA]],TBL_ClassificazioneDati,2,FALSE)","v":{"v":3000,"d":"€ 3,000"}},{"$f":"IF(VLOOKUP(TBL_Riepilogo[[#This Row],[CATEGORIA]],TBL_ClassificazioneDati,3,FALSE)=0,\"\",VLOOKUP(TBL_Riepilogo[[#This Row],[CATEGORIA]],TBL_ClassificazioneDati,3,FALSE))","v":""},{"$f":"IF(OR(TBL_Riepilogo[[#This Row],[COSTO STIMATO]]=\"\",TBL_Riepilogo[[#This Row],[COSTO EFFETTIVO]]=\"\"),\"\",TBL_Riepilogo[[#This Row],[COSTO STIMATO]]-TBL_Riepilogo[[#This Row],[COSTO EFFETTIVO]])","v":""},{"$f":"TBL_Riepilogo[[#This Row],[COSTO STIMATO]]/SUM(TBL_Riepilogo[COSTO STIMATO])","v":{"v":0.10084033613445378,"d":"10.1%"}},{"$nulls":3},"Fiori e decorazioni",{"$f":"TBL_FioriDecorazioni[[#Totals],[STIMATI]]","v":3000},{"$f":"TBL_FioriDecorazioni[[#Totals],[EFFETTIVI]]","v":0},2999.97,3,3,"Fiori e decorazioni"]
[null,"Foto e video",{"$f":"VLOOKUP(TBL_Riepilogo[[#This Row],[CATEGORIA]],TBL_ClassificazioneDati,2,FALSE)","v":{"v":2500,"d":"€ 2,500"}},{"$f":"IF(VLOOKUP(TBL_Riepilogo[[#This Row],[CATEGORIA]],TBL_ClassificazioneDati,3,FALSE)=0,\"\",VLOOKUP(TBL_Riepilogo[[#This Row],[CATEGORIA]],TBL_ClassificazioneDati,3,FALSE))","v":""},{"$f":"IF(OR(TBL_Riepilogo[[#This Row],[COSTO STIMATO]]=\"\",TBL_Riepilogo[[#This Row],[COSTO EFFETTIVO]]=\"\"),\"\",TBL_Riepilogo[[#This Row],[COSTO STIMATO]]-TBL_Riepilogo[[#This Row],[COSTO EFFETTIVO]])","v":""},{"$f":"TBL_Riepilogo[[#This Row],[COSTO STIMATO]]/SUM(TBL_Riepilogo[COSTO STIMATO])","v":{"v":0.08403361344537816,"d":"8.4%"}},{"$nulls":3},"Musica",{"$f":"TBL_Musica[[#Totals],[STIMATI]]","v":1800},{"$f":"TBL_Musica[[#Totals],[EFFETTIVI]]","v":0},1799.96,5,4,"Foto e video"]
[null,"Musica",{"$f":"VLOOKUP(TBL_Riepilogo[[#This Row],[CATEGORIA]],TBL_ClassificazioneDati,2,FALSE)","v":{"v":1800,"d":"€ 1,800"}},{"$f":"IF(VLOOKUP(TBL_Riepilogo[[#This Row],[CATEGORIA]],TBL_ClassificazioneDati,3,FALSE)=0,\"\",VLOOKUP(TBL_Riepilogo[[#This Row],[CATEGORIA]],TBL_ClassificazioneDati,3,FALSE))","v":""},{"$f":"IF(OR(TBL_Riepilogo[[#This Row],[COSTO STIMATO]]=\"\",TBL_Riepilogo[[#This Row],[COSTO EFFETTIVO]]=\"\"),\"\",TBL_Riepilogo[[#This Row],[COSTO STIMATO]]-TBL_Riepilogo[[#This Row],[COSTO EFFETTIVO]])","v":""},{"$f":"TBL_Riepilogo[[#This Row],[COSTO STIMATO]]/SUM(TBL_Riepilogo[COSTO STIMATO])","v":{"v":0.06050420168067227,"d":"6.1%"}},{"$nulls":3},"Foto e video",{"$f":"TBL_FotografieVideo[[#Totals],[STIMATI]]","v":2500},{"$f":"TBL_FotografieVideo[[#Totals],[EFFETTIVI]]","v":0},2499.95,4,5,"Musica"]
[null,"Bomboniere e regali",{"$f":"VLOOKUP(TBL_Riepilogo[[#This Row],[CATEGORIA]],TBL_ClassificazioneDati,2,FALSE)","v":{"v":1100,"d":"€ 1,100"}},{"$f":"IF(VLOOKUP(TBL_Riepilogo[[#This Row],[CATEGORIA]],TBL_ClassificazioneDati,3,FALSE)=0,\"\",VLOOKUP(TBL_Riepilogo[[#This Row],[CATEGORIA]],TBL_ClassificazioneDati,3,FALSE))","v":""},{"$f":"IF(OR(TBL_Riepilogo[[#This Row],[COSTO STIMATO]]=\"\",TBL_Riepilogo[[#This Row],[COSTO EFFETTIVO]]=\"\"),\"\",TBL_Riepilogo[[#This Row],[COSTO STIMATO]]-TBL_Riepilogo[[#This Row],[COSTO EFFETTIVO]])","v":""},{"$f":"TBL_Riepilogo[[#This Row],[COSTO STIMATO]]/SUM(TBL_Riepilogo[COSTO STIMATO])","v":{"v":0.03697478991596639,"d":"3.7%"}},{"$nulls":3},"Bomboniere e regali",{"$f":"TBL_BomboniereRegali[[#Totals],[STIMATI]]","v":1100},{"$f":"TBL_BomboniereRegali[[#Totals],[EFFETTIVI]]","v":0},1099.94,6,6,"Bomboniere e regali"]
[null,{"$f":"P12","v":"Fedi nuziali"},{"$f":"VLOOKUP(TBL_Riepilogo[[#This Row],[CATEGORIA]],TBL_ClassificazioneDati,2,FALSE)","v":{"v":1100,"d":"€ 1,100"}},{"$f":"IF(VLOOKUP(TBL_Riepilogo[[#This Row],[CATEGORIA]],TBL_ClassificazioneDati,3,FALSE)=0,\"\",VLOOKUP(TBL_Riepilogo[[#This Row],[CATEGORIA]],TBL_ClassificazioneDati,3,FALSE))","v":""},{"$f":"IF(OR(TBL_Riepilogo[[#This Row],[COSTO STIMATO]]=\"\",TBL_Riepilogo[[#This Row],[COSTO EFFETTIVO]]=\"\"),\"\",TBL_Riepilogo[[#This Row],[COSTO STIMATO]]-TBL_Riepilogo[[#This Row],[COSTO EFFETTIVO]])","v":""},{"$f":"TBL_Riepilogo[[#This Row],[COSTO STIMATO]]/SUM(TBL_Riepilogo[COSTO STIMATO])","v":{"v":0.03697478991596639,"d":"3.7%"}},{"$nulls":3},"Cerimonia",{"$f":"TBL_Cerimonia[[#Totals],[STIMATI]]","v":800},{"$f":"TBL_Cerimonia[[#Totals],[EFFETTIVI]]","v":0},799.93,8,7,"Fedi nuziali"]
[null,"Cerimonia",{"$f":"VLOOKUP(TBL_Riepilogo[[#This Row],[CATEGORIA]],TBL_ClassificazioneDati,2,FALSE)","v":{"v":800,"d":"€ 800"}},{"$f":"IF(VLOOKUP(TBL_Riepilogo[[#This Row],[CATEGORIA]],TBL_ClassificazioneDati,3,FALSE)=0,\"\",VLOOKUP(TBL_Riepilogo[[#This Row],[CATEGORIA]],TBL_ClassificazioneDati,3,FALSE))","v":""},{"$f":"IF(OR(TBL_Riepilogo[[#This Row],[COSTO STIMATO]]=\"\",TBL_Riepilogo[[#This Row],[COSTO EFFETTIVO]]=\"\"),\"\",TBL_Riepilogo[[#This Row],[COSTO STIMATO]]-TBL_Riepilogo[[#This Row],[COSTO EFFETTIVO]])","v":""},{"$f":"TBL_Riepilogo[[#This Row],[COSTO STIMATO]]/SUM(TBL_Riepilogo[COSTO STIMATO])","v":{"v":0.02689075630252101,"d":"2.7%"}},{"$nulls":3},"Cancelleria",{"$f":"TBL_Elementi_decorativi[[#Totals],[STIMATI]]","v":500},{"$f":"TBL_Elementi_decorativi[[#Totals],[EFFETTIVI]]","v":0},499.92,9,8,"Cerimonia"]
[null,"Cancelleria",{"$f":"VLOOKUP(TBL_Riepilogo[[#This Row],[CATEGORIA]],TBL_ClassificazioneDati,2,FALSE)","v":{"v":500,"d":"€ 500"}},{"$f":"IF(VLOOKUP(TBL_Riepilogo[[#This Row],[CATEGORIA]],TBL_ClassificazioneDati,3,FALSE)=0,\"\",VLOOKUP(TBL_Riepilogo[[#This Row],[CATEGORIA]],TBL_ClassificazioneDati,3,FALSE))","v":""},{"$f":"IF(OR(TBL_Riepilogo[[#This Row],[COSTO STIMATO]]=\"\",TBL_Riepilogo[[#This Row],[COSTO EFFETTIVO]]=\"\"),\"\",TBL_Riepilogo[[#This Row],[COSTO STIMATO]]-TBL_Riepilogo[[#This Row],[COSTO EFFETTIVO]])","v":""},{"$f":"TBL_Riepilogo[[#This Row],[COSTO STIMATO]]/SUM(TBL_Riepilogo[COSTO STIMATO])","v":{"v":0.01680672268907563,"d":"1.7%"}},{"$nulls":3},"Fedi nuziali",{"$f":"TBL_FediNuziali[[#Totals],[STIMATI]]","v":1100},{"$f":"TBL_FediNuziali[[#Totals],[EFFETTIVI]]","v":0},1099.91,7,9,"Cancelleria"]
[null,"Trasporti",{"$f":"VLOOKUP(TBL_Riepilogo[[#This Row],[CATEGORIA]],TBL_ClassificazioneDati,2,FALSE)","v":{"v":450,"d":"€ 450"}},{"$f":"IF(VLOOKUP(TBL_Riepilogo[[#This Row],[CATEGORIA]],TBL_ClassificazioneDati,3,FALSE)=0,\"\",VLOOKUP(TBL_Riepilogo[[#This Row],[CATEGORIA]],TBL_ClassificazioneDati,3,FALSE))","v":""},{"$f":"IF(OR(TBL_Riepilogo[[#This Row],[COSTO STIMATO]]=\"\",TBL_Riepilogo[[#This Row],[COSTO EFFETTIVO]]=\"\"),\"\",TBL_Riepilogo[[#This Row],[COSTO STIMATO]]-TBL_Riepilogo[[#This Row],[COSTO EFFETTIVO]])","v":""},{"$f":"TBL_Riepilogo[[#This Row],[COSTO STIMATO]]/SUM(TBL_Riepilogo[COSTO STIMATO])","v":{"v":0.015126050420168067,"d":"1.5%"}},{"$nulls":3},"Trasporti",{"$f":"TBL_Trasporti[[#Totals],[STIMATI]]","v":450},{"$f":"TBL_Trasporti[[#Totals],[EFFETTIVI]]","v":0},449.9,10,10,"Trasporti"]
[null,"Totale",{"$f":"SUBTOTAL(109,TBL_Riepilogo[COSTO STIMATO])","v":{"v":29750,"d":"€ 29,750"}},{"$f":"SUBTOTAL(109,TBL_Riepilogo[COSTO EFFETTIVO])","v":{"v":15700,"d":"€ 15,700"}},{"$f":"TBL_Riepilogo[[#Totals],[COSTO STIMATO]]-TBL_Riepilogo[[#Totals],[COSTO EFFETTIVO]]","v":{"v":14050,"d":"€ 14,050"}},{"$f":"SUBTOTAL(109,TBL_Riepilogo[% DEL BUDGET])","v":{"v":1,"d":"100%"}}]

{"sheet":"Dettagli budget","index":1,"n_rows":91,"n_cols":5,"rows_kept":91}
[]
[null,"DETTAGLI BUDGET"]
[]
[null,"RICEVIMENTO NUZIALE","STIMATI","EFFETTIVI","VARIANZA"]
[null,"Sede e noleggi",{"v":8000,"d":"€ 8,000.00"},{"v":7800,"d":"€ 7,800.00"},{"$f":"IF(OR(TBL_Ricevimento[[#This Row],[STIMATI]]=\"\",TBL_Ricevimento[[#This Row],[EFFETTIVI]]=\"\"),\"\",TBL_Ricevimento[[#This Row],[STIMATI]]-TBL_Ricevimento[[#This Row],[EFFETTIVI]])","v":{"v":200,"d":"€ 200.00"}}]
[null,"Cibo e servizi",{"v":4000,"d":"€ 4,000.00"},{"v":4200,"d":"€ 4,200.00"},{"$f":"IF(OR(TBL_Ricevimento[[#This Row],[STIMATI]]=\"\",TBL_Ricevimento[[#This Row],[EFFETTIVI]]=\"\"),\"\",TBL_Ricevimento[[#This Row],[STIMATI]]-TBL_Ricevimento[[#This Row],[EFFETTIVI]])","v":{"v":-200,"d":"-€ 200.00"}}]
[null,"Bevande",{"v":1000,"d":"€ 1,000.00"},{"v":800,"d":"€ 800.00"},{"$f":"IF(OR(TBL_Ricevimento[[#This Row],[STIMATI]]=\"\",TBL_Ricevimento[[#This Row],[EFFETTIVI]]=\"\"),\"\",TBL_Ricevimento[[#This Row],[STIMATI]]-TBL_Ricevimento[[#This Row],[EFFETTIVI]])","v":{"v":200,"d":"€ 200.00"}}]
[null,"Torta",{"v":1000,"d":"€ 1,000.00"},null,{"$f":"IF(OR(TBL_Ricevimento[[#This Row],[STIMATI]]=\"\",TBL_Ricevimento[[#This Row],[EFFETTIVI]]=\"\"),\"\",TBL_Ricevimento[[#This Row],[STIMATI]]-TBL_Ricevimento[[#This Row],[EFFETTIVI]])","v":""}]
[null,"Spese varie",{"v":500,"d":"€ 500.00"},null,{"$f":"IF(OR(TBL_Ricevimento[[#This Row],[STIMATI]]=\"\",TBL_Ricevimento[[#This Row],[EFFETTIVI]]=\"\"),\"\",TBL_Ricevimento[[#This Row],[STIMATI]]-TBL_Ricevimento[[#This Row],[EFFETTIVI]])","v":""}]
[null,"TOTALE RICEVIMENTO NUZIALE",{"$f":"SUBTOTAL(109,TBL_Ricevimento[STIMATI])","v":{"v":14500,"d":"€ 14,500.00"}},{"$f":"SUBTOTAL(109,TBL_Ricevimento[EFFETTIVI])","v":{"v":12800,"d":"€ 12,800.00"}},{"$f":"TBL_Ricevimento[[#Totals],[STIMATI]]-TBL_Ricevimento[[#Totals],[EFFETTIVI]]","v":{"v":1700,"d":"€ 1,700.00"}}]
[]
[]
[null,"ABBIGLIAMENTO","STIMATI","EFFETTIVI","VARIANZA"]
[null,"Smoking, completi e/o abiti",{"v":3000,"d":"€ 3,000.00"},{"v":2900,"d":"€ 2,900.00"},{"$f":"IF(OR(TBL_Abbigliamento[[#This Row],[STIMATI]]=\"\",TBL_Abbigliamento[[#This Row],[EFFETTIVI]]=\"\"),\"\",TBL_Abbigliamento[[#This Row],[STIMATI]]-TBL_Abbigliamento[[#This Row],[EFFETTIVI]])","v":{"v":100,"d":"€ 100.00"}}]
[null,"Modifiche",{"v":100,"d":"€ 100.00"},null,{"$f":"IF(OR(TBL_Abbigliamento[[#This Row],[STIMATI]]=\"\",TBL_Abbigliamento[[#This Row],[EFFETTIVI]]=\"\"),\"\",TBL_Abbigliamento[[#This Row],[STIMATI]]-TBL_Abbigliamento[[#This Row],[EFFETTIVI]])","v":""}]
[null,"Copricapo e velo",{"v":200,"d":"€ 200.00"},null,{"$f":"IF(OR(TBL_Abbigliamento[[#This Row],[STIMATI]]=\"\",TBL_Abbigliamento[[#This Row],[EFFETTIVI]]=\"\"),\"\",TBL_Abbigliamento[[#This Row],[STIMATI]]-TBL_Abbigliamento[[#This Row],[EFFETTIVI]])","v":""}]
[null,"Accessori",{"v":100,"d":"€ 100.00"},null,{"$f":"IF(OR(TBL_Abbigliamento[[#This Row],[STIMATI]]=\"\",TBL_Abbigliamento[[#This Row],[EFFETTIVI]]=\"\"),\"\",TBL_Abbigliamento[[#This Row],[STIMATI]]-TBL_Abbigliamento[[#This Row],[EFFETTIVI]])","v":""}]
[null,"Acconciatura e makeup",{"v":500,"d":"€ 500.00"},null,{"$f":"IF(OR(TBL_Abbigliamento[[#This Row],[STIMATI]]=\"\",TBL_Abbigliamento[[#This Row],[EFFETTIVI]]=\"\"),\"\",TBL_Abbigliamento[[#This Row],[STIMATI]]-TBL_Abbigliamento[[#This Row],[EFFETTIVI]])","v":""}]
[null,"Spese varie",{"v":100,"d":"€ 100.00"},null,{"$f":"IF(OR(TBL_Abbigliamento[[#This Row],[STIMATI]]=\"\",TBL_Abbigliamento[[#This Row],[EFFETTIVI]]=\"\"),\"\",TBL_Abbigliamento[[#This Row],[STIMATI]]-TBL_Abbigliamento[[#This Row],[EFFETTIVI]])","v":""}]
[null,"TOTALE ABBIGLIAMENTO",{"$f":"SUBTOTAL(109,TBL_Abbigliamento[STIMATI])","v":{"v":4000,"d":"€ 4,000.00"}},{"$f":"SUBTOTAL(109,TBL_Abbigliamento[EFFETTIVI])","v":{"v":2900,"d":"€ 2,900.00"}},{"$f":"TBL_Abbigliamento[[#Totals],[STIMATI]]-TBL_Abbigliamento[[#Totals],[EFFETTIVI]]","v":{"v":1100,"d":"€ 1,100.00"}}]
[]
[]
[null,"FIORI E DECORAZIONI","STIMATI","EFFETTIVI","VARIANZA"]
[null,"Addobbi floreali per cerimonia",{"v":1000,"d":"€ 1,000.00"},null,{"$f":"IF(OR(TBL_FioriDecorazioni[[#This Row],[STIMATI]]=\"\",TBL_FioriDecorazioni[[#This Row],[EFFETTIVI]]=\"\"),\"\",TBL_FioriDecorazioni[[#This Row],[STIMATI]]-TBL_FioriDecorazioni[[#This Row],[EFFETTIVI]])","v":""}]
[null,"Boccioli e cestino di Flower Girl",{"v":500,"d":"€ 500.00"},null,{"$f":"IF(OR(TBL_FioriDecorazioni[[#This Row],[STIMATI]]=\"\",TBL_FioriDecorazioni[[#This Row],[EFFETTIVI]]=\"\"),\"\",TBL_FioriDecorazioni[[#This Row],[STIMATI]]-TBL_FioriDecorazioni[[#This Row],[EFFETTIVI]])","v":""}]
[null,"Cuscino tondo",{"v":100,"d":"€ 100.00"},null,{"$f":"IF(OR(TBL_FioriDecorazioni[[#This Row],[STIMATI]]=\"\",TBL_FioriDecorazioni[[#This Row],[EFFETTIVI]]=\"\"),\"\",TBL_FioriDecorazioni[[#This Row],[STIMATI]]-TBL_FioriDecorazioni[[#This Row],[EFFETTIVI]])","v":""}]
[null,"Bouquet",{"v":500,"d":"€ 500.00"},null,{"$f":"IF(OR(TBL_FioriDecorazioni[[#This Row],[STIMATI]]=\"\",TBL_FioriDecorazioni[[#This Row],[EFFETTIVI]]=\"\"),\"\",TBL_FioriDecorazioni[[#This Row],[STIMATI]]-TBL_FioriDecorazioni[[#This Row],[EFFETTIVI]])","v":""}]
[null,"Boutonnière",{"v":100,"d":"€ 100.00"},null,{"$f":"IF(OR(TBL_FioriDecorazioni[[#This Row],[STIMATI]]=\"\",TBL_FioriDecorazioni[[#This Row],[EFFETTIVI]]=\"\"),\"\",TBL_FioriDecorazioni[[#This Row],[STIMATI]]-TBL_FioriDecorazioni[[#This Row],[EFFETTIVI]])","v":""}]
[null,"Corsage",{"v":200,"d":"€ 200.00"},null,{"$f":"IF(OR(TBL_FioriDecorazioni[[#This Row],[STIMATI]]=\"\",TBL_FioriDecorazioni[[#This Row],[EFFETTIVI]]=\"\"),\"\",TBL_FioriDecorazioni[[#This Row],[STIMATI]]-TBL_FioriDecorazioni[[#This Row],[EFFETTIVI]])","v":""}]
[null,"Decorazioni per il ricevimento nuziale",{"v":300,"d":"€ 300.00"},null,{"$f":"IF(OR(TBL_FioriDecorazioni[[#This Row],[STIMATI]]=\"\",TBL_FioriDecorazioni[[#This Row],[EFFETTIVI]]=\"\"),\"\",TBL_FioriDecorazioni[[#This Row],[STIMATI]]-TBL_FioriDecorazioni[[#This Row],[EFFETTIVI]])","v":""}]
[null,"Illuminazione",{"v":200,"d":"€ 200.00"},null,{"$f":"IF(OR(TBL_FioriDecorazioni[[#This Row],[STIMATI]]=\"\",TBL_FioriDecorazioni[[#This Row],[EFFETTIVI]]=\"\"),\"\",TBL_FioriDecorazioni[[#This Row],[STIMATI]]-TBL_FioriDecorazioni[[#This Row],[EFFETTIVI]])","v":""}]
[null,"Spese varie",{"v":100,"d":"€ 100.00"},null,{"$f":"IF(OR(TBL_FioriDecorazioni[[#This Row],[STIMATI]]=\"\",TBL_FioriDecorazioni[[#This Row],[EFFETTIVI]]=\"\"),\"\",TBL_FioriDecorazioni[[#This Row],[STIMATI]]-TBL_FioriDecorazioni[[#This Row],[EFFETTIVI]])","v":""}]
[null,"TOTALE FIORI E DECORAZIONI",{"$f":"SUBTOTAL(109,TBL_FioriDecorazioni[STIMATI])","v":{"v":3000,"d":"€ 3,000.00"}},{"$f":"SUBTOTAL(109,TBL_FioriDecorazioni[EFFETTIVI])","v":{"v":0,"d":"€ 0.00"}},{"$f":"TBL_FioriDecorazioni[[#Totals],[STIMATI]]-TBL_FioriDecorazioni[[#Totals],[EFFETTIVI]]","v":{"v":3000,"d":"€ 3,000.00"}}]
[]
[]
[null,"MUSICA","STIMATI","EFFETTIVI","VARIANZA"]
[null,"Musicisti per la cerimonia",{"v":700,"d":"€ 700.00"},null,{"$f":"IF(OR(TBL_Musica[[#This Row],[STIMATI]]=\"\",TBL_Musica[[#This Row],[EFFETTIVI]]=\"\"),\"\",TBL_Musica[[#This Row],[STIMATI]]-TBL_Musica[[#This Row],[EFFETTIVI]])","v":""}]
[null,"Musicisti per il cocktail",{"v":300,"d":"€ 300.00"},null,{"$f":"IF(OR(TBL_Musica[[#This Row],[STIMATI]]=\"\",TBL_Musica[[#This Row],[EFFETTIVI]]=\"\"),\"\",TBL_Musica[[#This Row],[STIMATI]]-TBL_Musica[[#This Row],[EFFETTIVI]])","v":""}]
[null,"Gruppo musicale per il ricevimento nuziale, deejay o intrattenimento",{"v":200,"d":"€ 200.00"},null,{"$f":"IF(OR(TBL_Musica[[#This Row],[STIMATI]]=\"\",TBL_Musica[[#This Row],[EFFETTIVI]]=\"\"),\"\",TBL_Musica[[#This Row],[STIMATI]]-TBL_Musica[[#This Row],[EFFETTIVI]])","v":""}]
[null,"Noleggio di impianto audio o pista da ballo",{"v":400,"d":"€ 400.00"},null,{"$f":"IF(OR(TBL_Musica[[#This Row],[STIMATI]]=\"\",TBL_Musica[[#This Row],[EFFETTIVI]]=\"\"),\"\",TBL_Musica[[#This Row],[STIMATI]]-TBL_Musica[[#This Row],[EFFETTIVI]])","v":""}]
[null,"Spese varie",{"v":200,"d":"€ 200.00"},null,{"$f":"IF(OR(TBL_Musica[[#This Row],[STIMATI]]=\"\",TBL_Musica[[#This Row],[EFFETTIVI]]=\"\"),\"\",TBL_Musica[[#This Row],[STIMATI]]-TBL_Musica[[#This Row],[EFFETTIVI]])","v":""}]
[null,"TOTALE MUSICA",{"$f":"SUBTOTAL(109,TBL_Musica[STIMATI])","v":{"v":1800,"d":"€ 1,800.00"}},{"$f":"SUBTOTAL(109,TBL_Musica[EFFETTIVI])","v":{"v":0,"d":"€ 0.00"}},{"$f":"TBL_Musica[[#Totals],[STIMATI]]-TBL_Musica[[#Totals],[EFFETTIVI]]","v":{"v":1800,"d":"€ 1,800.00"}}]
[]
[]
[null,"FOTOGRAFIE E VIDEO","STIMATI","EFFETTIVI","VARIANZA"]
[null,"Fotografie",{"v":1000,"d":"€ 1,000.00"},null,{"$f":"IF(OR(TBL_FotografieVideo[[#This Row],[STIMATI]]=\"\",TBL_FotografieVideo[[#This Row],[EFFETTIVI]]=\"\"),\"\",TBL_FotografieVideo[[#This Row],[STIMATI]]-TBL_FotografieVideo[[#This Row],[EFFETTIVI]])","v":""}]
[null,"Servizi video",{"v":800,"d":"€ 800.00"},null,{"$f":"IF(OR(TBL_FotografieVideo[[#This Row],[STIMATI]]=\"\",TBL_FotografieVideo[[#This Row],[EFFETTIVI]]=\"\"),\"\",TBL_FotografieVideo[[#This Row],[STIMATI]]-TBL_FotografieVideo[[#This Row],[EFFETTIVI]])","v":""}]
[null,"Stampe e album aggiuntivi",{"v":500,"d":"€ 500.00"},null,{"$f":"IF(OR(TBL_FotografieVideo[[#This Row],[STIMATI]]=\"\",TBL_FotografieVideo[[#This Row],[EFFETTIVI]]=\"\"),\"\",TBL_FotografieVideo[[#This Row],[STIMATI]]-TBL_FotografieVideo[[#This Row],[EFFETTIVI]])","v":""}]
[null,"Spese varie",{"v":200,"d":"€ 200.00"},null,{"$f":"IF(OR(TBL_FotografieVideo[[#This Row],[STIMATI]]=\"\",TBL_FotografieVideo[[#This Row],[EFFETTIVI]]=\"\"),\"\",TBL_FotografieVideo[[#This Row],[STIMATI]]-TBL_FotografieVideo[[#This Row],[EFFETTIVI]])","v":""}]
[null,"TOTALE FOTO E VIDEO",{"$f":"SUBTOTAL(109,TBL_FotografieVideo[STIMATI])","v":{"v":2500,"d":"€ 2,500.00"}},{"$f":"SUBTOTAL(109,TBL_FotografieVideo[EFFETTIVI])","v":{"v":0,"d":"€ 0.00"}},{"$f":"TBL_FotografieVideo[[#Totals],[STIMATI]]-TBL_FotografieVideo[[#Totals],[EFFETTIVI]]","v":{"v":2500,"d":"€ 2,500.00"}}]
[]
[]
[null,"BOMBONIERE E REGALI","STIMATI","EFFETTIVI","VARIANZA"]
[null,"Regali di benvenuto",{"v":700,"d":"€ 700.00"},null,{"$f":"IF(OR(TBL_BomboniereRegali[[#This Row],[STIMATI]]=\"\",TBL_BomboniereRegali[[#This Row],[EFFETTIVI]]=\"\"),\"\",TBL_BomboniereRegali[[#This Row],[STIMATI]]-TBL_BomboniereRegali[[#This Row],[EFFETTIVI]])","v":""}]
[null,"Regali per la festa",{"v":200,"d":"€ 200.00"},null,{"$f":"IF(OR(TBL_BomboniereRegali[[#This Row],[STIMATI]]=\"\",TBL_BomboniereRegali[[#This Row],[EFFETTIVI]]=\"\"),\"\",TBL_BomboniereRegali[[#This Row],[STIMATI]]-TBL_BomboniereRegali[[#This Row],[EFFETTIVI]])","v":""}]
[null,"Spese varie",{"v":200,"d":"€ 200.00"},null,{"$f":"IF(OR(TBL_BomboniereRegali[[#This Row],[STIMATI]]=\"\",TBL_BomboniereRegali[[#This Row],[EFFETTIVI]]=\"\"),\"\",TBL_BomboniereRegali[[#This Row],[STIMATI]]-TBL_BomboniereRegali[[#This Row],[EFFETTIVI]])","v":""}]
[null,"TOTALE BOMBONIERE E REGALI",{"$f":"SUBTOTAL(109,TBL_BomboniereRegali[STIMATI])","v":{"v":1100,"d":"€ 1,100.00"}},{"$f":"SUBTOTAL(109,TBL_BomboniereRegali[EFFETTIVI])","v":{"v":0,"d":"€ 0.00"}},{"$f":"TBL_BomboniereRegali[[#Totals],[STIMATI]]-TBL_BomboniereRegali[[#Totals],[EFFETTIVI]]","v":{"v":1100,"d":"€ 1,100.00"}}]
[]
[]
[null,"CERIMONIA","STIMATI","EFFETTIVI","VARIANZA"]
[null,"Costo del sito",{"v":500,"d":"€ 500.00"},null,{"$f":"IF(OR(TBL_Cerimonia[[#This Row],[STIMATI]]=\"\",TBL_Cerimonia[[#This Row],[EFFETTIVI]]=\"\"),\"\",TBL_Cerimonia[[#This Row],[STIMATI]]-TBL_Cerimonia[[#This Row],[EFFETTIVI]])","v":""}]
[null,"Costo dell’officiante e donazione alla Chiesa",{"v":200,"d":"€ 200.00"},null,{"$f":"IF(OR(TBL_Cerimonia[[#This Row],[STIMATI]]=\"\",TBL_Cerimonia[[#This Row],[EFFETTIVI]]=\"\"),\"\",TBL_Cerimonia[[#This Row],[STIMATI]]-TBL_Cerimonia[[#This Row],[EFFETTIVI]])","v":""}]
[null,"Spese varie",{"v":100,"d":"€ 100.00"},null,{"$f":"IF(OR(TBL_Cerimonia[[#This Row],[STIMATI]]=\"\",TBL_Cerimonia[[#This Row],[EFFETTIVI]]=\"\"),\"\",TBL_Cerimonia[[#This Row],[STIMATI]]-TBL_Cerimonia[[#This Row],[EFFETTIVI]])","v":""}]
[null,"TOTALE CERIMONIA",{"$f":"SUBTOTAL(109,TBL_Cerimonia[STIMATI])","v":{"v":800,"d":"€ 800.00"}},{"$f":"SUBTOTAL(109,TBL_Cerimonia[EFFETTIVI])","v":{"v":0,"d":"€ 0.00"}},{"$f":"TBL_Cerimonia[[#Totals],[STIMATI]]-TBL_Cerimonia[[#Totals],[EFFETTIVI]]","v":{"v":800,"d":"€ 800.00"}}]
[]
[]
[null,"CANCELLERIA","STIMATI","EFFETTIVI","VARIANZA"]
[null,"Partecipazioni",{"v":50,"d":"€ 50.00"},null,{"$f":"IF(OR(TBL_Elementi_decorativi[[#This Row],[STIMATI]]=\"\",TBL_Elementi_decorativi[[#This Row],[EFFETTIVI]]=\"\"),\"\",TBL_Elementi_decorativi[[#This Row],[STIMATI]]-TBL_Elementi_decorativi[[#This Row],[EFFETTIVI]])","v":""}]
[null,"Inviti e conferme",{"v":100,"d":"€ 100.00"},null,{"$f":"IF(OR(TBL_Elementi_decorativi[[#This Row],[STIMATI]]=\"\",TBL_Elementi_decorativi[[#This Row],[EFFETTIVI]]=\"\"),\"\",TBL_Elementi_decorativi[[#This Row],[STIMATI]]-TBL_Elementi_decorativi[[#This Row],[EFFETTIVI]])","v":""}]
[null,"Programmi",{"v":50,"d":"€ 50.00"},null,{"$f":"IF(OR(TBL_Elementi_decorativi[[#This Row],[STIMATI]]=\"\",TBL_Elementi_decorativi[[#This Row],[EFFETTIVI]]=\"\"),\"\",TBL_Elementi_decorativi[[#This Row],[STIMATI]]-TBL_Elementi_decorativi[[#This Row],[EFFETTIVI]])","v":""}]
[null,"Posti a sedere e segnaposto",{"v":50,"d":"€ 50.00"},null,{"$f":"IF(OR(TBL_Elementi_decorativi[[#This Row],[STIMATI]]=\"\",TBL_Elementi_decorativi[[#This Row],[EFFETTIVI]]=\"\"),\"\",TBL_Elementi_decorativi[[#This Row],[STIMATI]]-TBL_Elementi_decorativi[[#This Row],[EFFETTIVI]])","v":""}]
[null,"Schede menu",{"v":50,"d":"€ 50.00"},null,{"$f":"IF(OR(TBL_Elementi_decorativi[[#This Row],[STIMATI]]=\"\",TBL_Elementi_decorativi[[#This Row],[EFFETTIVI]]=\"\"),\"\",TBL_Elementi_decorativi[[#This Row],[STIMATI]]-TBL_Elementi_decorativi[[#This Row],[EFFETTIVI]])","v":""}]
[null,"Biglietti di ringraziamento",{"v":50,"d":"€ 50.00"},null,{"$f":"IF(OR(TBL_Elementi_decorativi[[#This Row],[STIMATI]]=\"\",TBL_Elementi_decorativi[[#This Row],[EFFETTIVI]]=\"\"),\"\",TBL_Elementi_decorativi[[#This Row],[STIMATI]]-TBL_Elementi_decorativi[[#This Row],[EFFETTIVI]])","v":""}]
[null,"Affrancatura",{"v":50,"d":"€ 50.00"},null,{"$f":"IF(OR(TBL_Elementi_decorativi[[#This Row],[STIMATI]]=\"\",TBL_Elementi_decorativi[[#This Row],[EFFETTIVI]]=\"\"),\"\",TBL_Elementi_decorativi[[#This Row],[STIMATI]]-TBL_Elementi_decorativi[[#This Row],[EFFETTIVI]])","v":""}]
[null,"Spese varie",{"v":100,"d":"€ 100.00"},null,{"$f":"IF(OR(TBL_Elementi_decorativi[[#This Row],[STIMATI]]=\"\",TBL_Elementi_decorativi[[#This Row],[EFFETTIVI]]=\"\"),\"\",TBL_Elementi_decorativi[[#This Row],[STIMATI]]-TBL_Elementi_decorativi[[#This Row],[EFFETTIVI]])","v":""}]
[null,"TOTALE CANCELLERIA",{"$f":"SUBTOTAL(109,TBL_Elementi_decorativi[STIMATI])","v":{"v":500,"d":"€ 500.00"}},{"$f":"SUBTOTAL(109,TBL_Elementi_decorativi[EFFETTIVI])","v":{"v":0,"d":"€ 0.00"}},{"$f":"TBL_Elementi_decorativi[[#Totals],[STIMATI]]-TBL_Elementi_decorativi[[#Totals],[EFFETTIVI]]","v":{"v":500,"d":"€ 500.00"}}]
[]
[]
[null,"FEDI NUZIALI","STIMATI","EFFETTIVI","VARIANZA"]
[null,"Fedi nuziali",{"v":1000,"d":"€ 1,000.00"},null,{"$f":"IF(OR(TBL_FediNuziali[[#This Row],[STIMATI]]=\"\",TBL_FediNuziali[[#This Row],[EFFETTIVI]]=\"\"),\"\",TBL_FediNuziali[[#This Row],[STIMATI]]-TBL_FediNuziali[[#This Row],[EFFETTIVI]])","v":""}]
[null,"Accessori per fedi",{"v":100,"d":"€ 100.00"},null,{"$f":"IF(OR(TBL_FediNuziali[[#This Row],[STIMATI]]=\"\",TBL_FediNuziali[[#This Row],[EFFETTIVI]]=\"\"),\"\",TBL_FediNuziali[[#This Row],[STIMATI]]-TBL_FediNuziali[[#This Row],[EFFETTIVI]])","v":""}]
[null,"TOTALE FEDI NUZIALI",{"$f":"SUBTOTAL(109,TBL_FediNuziali[STIMATI])","v":{"v":1100,"d":"€ 1,100.00"}},{"$f":"SUBTOTAL(109,TBL_FediNuziali[EFFETTIVI])","v":{"v":0,"d":"€ 0.00"}},{"$f":"TBL_FediNuziali[[#Totals],[STIMATI]]-TBL_FediNuziali[[#Totals],[EFFETTIVI]]","v":{"v":1100,"d":"€ 1,100.00"}}]
[]
[]
[null,"TRASPORTI  ","STIMATI","EFFETTIVI","VARIANZA"]
[null,"Noleggio auto principale",{"v":100,"d":"€ 100.00"},null,{"$f":"IF(OR(TBL_Trasporti[[#This Row],[STIMATI]]=\"\",TBL_Trasporti[[#This Row],[EFFETTIVI]]=\"\"),\"\",TBL_Trasporti[[#This Row],[STIMATI]]-TBL_Trasporti[[#This Row],[EFFETTIVI]])","v":""}]
[null,"Noleggio auto ospiti",{"v":100,"d":"€ 100.00"},null,{"$f":"IF(OR(TBL_Trasporti[[#This Row],[STIMATI]]=\"\",TBL_Trasporti[[#This Row],[EFFETTIVI]]=\"\"),\"\",TBL_Trasporti[[#This Row],[STIMATI]]-TBL_Trasporti[[#This Row],[EFFETTIVI]])","v":""}]
[null,"Trasporti per ospiti che vivono in altre città",{"v":100,"d":"€ 100.00"},null,{"$f":"IF(OR(TBL_Trasporti[[#This Row],[STIMATI]]=\"\",TBL_Trasporti[[#This Row],[EFFETTIVI]]=\"\"),\"\",TBL_Trasporti[[#This Row],[STIMATI]]-TBL_Trasporti[[#This Row],[EFFETTIVI]])","v":""}]
[null,"Servizio di parcheggio",{"v":50,"d":"€ 50.00"},null,{"$f":"IF(OR(TBL_Trasporti[[#This Row],[STIMATI]]=\"\",TBL_Trasporti[[#This Row],[EFFETTIVI]]=\"\"),\"\",TBL_Trasporti[[#This Row],[STIMATI]]-TBL_Trasporti[[#This Row],[EFFETTIVI]])","v":""}]
[null,"Spese varie",{"v":100,"d":"€ 100.00"},null,{"$f":"IF(OR(TBL_Trasporti[[#This Row],[STIMATI]]=\"\",TBL_Trasporti[[#This Row],[EFFETTIVI]]=\"\"),\"\",TBL_Trasporti[[#This Row],[STIMATI]]-TBL_Trasporti[[#This Row],[EFFETTIVI]])","v":""}]
[null,"TOTALE TRASPORTI",{"$f":"SUBTOTAL(109,TBL_Trasporti[STIMATI])","v":{"v":450,"d":"€ 450.00"}},{"$f":"SUBTOTAL(109,TBL_Trasporti[EFFETTIVI])","v":{"v":0,"d":"€ 0.00"}},{"$f":"TBL_Trasporti[[#Totals],[STIMATI]]-TBL_Trasporti[[#Totals],[EFFETTIVI]]","v":{"v":450,"d":"€ 450.00"}}]